fUSD/lending_fUSD_20240428
["ID","MTS","AMOUNT","RATE_DAILY","PERIOD"]
[37227,1714331496660,-596.99,0.00012328,2]
[37229,1714331496678,-500.0,0.00012328,2]
[37230,1714331496688,-500.0,0.00012328,2]
[37231,1714331496697,-500.0,0.00012328,2]
[37232,1714331496706,-500.0,0.00012328,2]
[37233,1714331496716,-500.0,0.00012328,2]
[37234,1714331496726,-1224.58,0.00012328,2]
[37235,1714331496735,-574.66,0.00012328,2]
[37236,1714331496745,-500.0,0.00012328,2]
[37237,1714331496754,-1272.33,0.00012328,2]
[37238,1714331496764,-491.75227601,0.00012328,2]
[37239,1714331496773,-624.41,0.00012328,2]
[37241,1714331496792,-500.0,0.00012328,2]
[37243,1714331496811,-557.05,0.00012328,2]
[37245,1714331496829,-500.0,0.00012328,2]
[37247,1714331496849,-500.0,0.00012328,2]
[37249,1714331496867,-500.0,0.00012328,2]
[37251,1714331496887,-533.0,0.00012328,2]
[37253,1714331496906,-500.0,0.00012328,2]
[37255,1714331496925,-500.0,0.00012328,2]
[37256,1714331496934,-500.0,0.00012328,2]
[37257,1714331496943,-899.28,0.00012328,2]
[37258,1714331496952,-500.0,0.00012328,2]
[37259,1714331496961,-500.0,0.00012328,2]
[37260,1714331496971,-500.0,0.00012328,2]
[37261,1714331496980,-1142.31,0.00012328,2]
[37262,1714331496990,-500.0,0.00012328,2]
[37263,1714331496998,-500.0,0.00012328,2]
[37264,1714331497008,-581.74,0.00012328,2]
[37265,1714331497017,-606.2,0.00012328,2]
[37267,1714331497036,-500.0,0.00012328,2]
[37269,1714331497054,-500.0,0.00012328,2]
[37271,1714331497072,-500.0,0.00012328,2]
[37273,1714331497090,-629.85,0.00012328,2]
[37275,1714331497108,-500.0,0.00012328,2]
[37276,1714331497117,-816.26,0.00012328,2]
[37277,1714331497126,-507.09,0.00012328,2]
[37279,1714331497144,-500.0,0.00012328,2]
[37281,1714331497162,-527.72,0.00012328,2]
[37282,1714331497172,-1106.8,0.00012328,2]
[37283,1714331497182,-788.51,0.00012328,2]
[37285,1714331497200,-500.0,0.00012328,2]
[37286,1714331497209,-711.18,0.00012328,2]
[37287,1714331497219,-500.0,0.00012328,2]
[37288,1714331497227,-1397.03,0.00012328,2]
[37289,1714331497237,-513.17,0.00012328,2]
[37291,1714331497255,-565.5,0.00012328,2]
[37292,1714331497264,-1610.42,0.00012328,2]
[37293,1714331497273,-1218.59,0.00012328,2]
[37294,1714331497282,-500.0,0.00012328,2]
[37295,1714331497293,-500.0,0.00012328,2]
[37297,1714331497310,-500.0,0.00012328,2]
[37298,1714331497320,-666.45,0.00012328,2]
[37299,1714331497329,-500.0,0.00012328,2]
[37300,1714331497338,-513.55,0.00012328,2]
[37301,1714331497355,-500.0,0.00012328,2]
[37302,1714331497365,-500.0,0.00012328,2]
[37303,1714331497374,-1577.52,0.00012328,2]
[37304,1714331497383,-500.0,0.00012328,2]
[37305,1714331497392,-504.98790945,0.00012328,2]
[37306,1714331497402,-500.0,0.00012328,2]
[37307,1714331497411,-500.0,0.00012328,2]
[37308,1714331497421,-728.71,0.00012328,2]
[37309,1714331497430,-500.0,0.00012328,2]
[37311,1714331497449,-615.66,0.00012328,2]
[37313,1714331497469,-500.0,0.00012328,2]
[37315,1714331497488,-575.03,0.00012328,2]
[37317,1714331497507,-542.89,0.00012328,2]
[37319,1714331497526,-1308.96,0.00012328,2]
[37321,1714331497545,-313.43571617,0.00012328,2]
[37323,1714331497563,-513.25,0.00012328,2]
[37325,1714331497582,-920.36,0.00012328,2]
[37327,1714331497600,-645.92,0.00012328,2]
[37329,1714331497618,-592.76,0.00012328,2]
[37331,1714331497636,-765.46,0.00012328,2]
[37333,1714331497655,-500.0,0.00012328,2]
[37335,1714331497673,-585.78,0.00012328,2]
[37336,1714331497682,-519.38,0.00012328,2]
[37337,1714331497691,-500.0,0.00012328,2]
[37338,1714331497700,-1176.19,0.00012328,2]
[37339,1714331497709,-535.83,0.00012328,2]
[37340,1714331497718,-500.0,0.00012328,2]
[37341,1714331497727,-500.0,0.00012328,2]
[37342,1714331497736,-500.0,0.00012328,2]
[37343,1714331497745,-581.86,0.00012328,2]
[37345,1714331497763,-608.78,0.00012328,2]
[37347,1714331497781,-640.22,0.00012328,2]
[37349,1714331497799,-500.0,0.00012328,2]
[37351,1714331497817,-500.0,0.00012328,2]
[37353,1714331497836,-500.0,0.00012328,2]
[37355,1714331497855,-810.35,0.00012328,2]
[37357,1714331497873,-625.09,0.00012328,2]
[37359,1714331497893,-500.0,0.00012328,2]
[37360,1714331497902,-544.86,0.00012328,2]
[37361,1714331497912,-500.0,0.00012328,2]
[37363,1714331497930,-500.0,0.00012328,2]
[37365,1714331497949,-540.78,0.00012328,2]
[37367,1714331497967,-500.0,0.00012328,2]
[37369,1714331497985,-500.0,0.00012328,2]
[37371,1714331498004,-500.0,0.00012328,2]
[37373,1714331498023,-500.0,0.00012328,2]
[37375,1714331498042,-775.6,0.00012328,2]
[37377,1714331498061,-890.23,0.00012328,2]
[37379,1714331498079,-628.44,0.00012328,2]
[37380,1714331498089,-500.0,0.00012328,2]
[37381,1714331498099,-512.99,0.00012328,2]
[37382,1714331498108,-500.0,0.00012328,2]
[37383,1714331498119,-500.0,0.00012328,2]
[37384,1714331498129,-500.0,0.00012328,2]
[37385,1714331498138,-807.65,0.00012328,2]
[37386,1714331498147,-561.86,0.00012328,2]
[37387,1714331498157,-721.68,0.00012328,2]
[37388,1714331498166,-500.0,0.00012328,2]
[37389,1714331498175,-500.0,0.00012328,2]
[37390,1714331498184,-500.0,0.00012328,2]
[37391,1714331498194,-500.0,0.00012328,2]
[37392,1714331498204,-500.0,0.00012328,2]
[37393,1714331498214,-500.0,0.00012328,2]
[37394,1714331498223,-500.0,0.00012328,2]
[37395,1714331498232,-500.0,0.00012328,2]
[37396,1714331498242,-607.06,0.00012328,2]
[37397,1714331498251,-500.0,0.00012328,2]
[37399,1714331498270,-500.0,0.00012328,2]
[37401,1714331498290,-500.0,0.00012328,2]
[37403,1714331498309,-500.0,0.00012328,2]
[37405,1714331498329,-500.0,0.00012328,2]
[37407,1714331498349,-500.0,0.00012328,2]
[37408,1714331498366,-588.44,0.00012328,2]
[37409,1714331498375,-500.0,0.00012328,2]
[37410,1714331498385,-500.0,0.00012328,2]
[37411,1714331498395,-998.15,0.00012328,2]
[37412,1714331498404,-500.0,0.00012328,2]
[37413,1714331498414,-556.97,0.00012328,2]
[37414,1714331498424,-627.25,0.00012328,2]
[37415,1714331498439,-573.36,0.00012328,2]
[37416,1714331498448,-888.38,0.00012328,2]
[37417,1714331498457,-500.0,0.00012328,2]
[37419,1714331498475,-565.43,0.00012328,2]
[37421,1714331498494,-357.87049879,0.00012328,2]
[37423,1714331498511,-614.15,0.00012328,2]
[37425,1714331498529,-544.68,0.00012328,2]
[37427,1714331498548,-500.0,0.00012328,2]
[37429,1714331498566,-500.0,0.00012328,2]
[37431,1714331498584,-150.0,0.00012328,2]
[37433,1714331498602,-500.0,0.00012328,2]
[37435,1714331498620,-500.0,0.00012328,2]
[37437,1714331498638,-500.0,0.00012328,2]
[37439,1714331498657,-500.0,0.00012328,2]
[37441,1714331498676,-520.06,0.00012328,2]
[37443,1714331498695,-765.39,0.00012328,2]
[37445,1714331498713,-510.54,0.00012328,2]
[37447,1714331498732,-500.0,0.00012328,2]
[37449,1714331498750,-979.76,0.00012328,2]
[37451,1714331498769,-662.94,0.00012328,2]
[37453,1714331498787,-500.0,0.00012328,2]
[37455,1714331498806,-500.0,0.00012328,2]
[37457,1714331498824,-500.0,0.00012328,2]
[37459,1714331498842,-511.71,0.00012328,2]
[37461,1714331498861,-500.0,0.00012328,2]
[37463,1714331498879,-500.0,0.00012328,2]
[37465,1714331498898,-913.43,0.00012328,2]
[37467,1714331498916,-540.89,0.00012328,2]
[37469,1714331498935,-500.0,0.00012328,2]
[37471,1714331498953,-717.54,0.00012328,2]
[37473,1714331498971,-500.0,0.00012328,2]
[37475,1714331498989,-500.0,0.00012328,2]
[37477,1714331499008,-500.0,0.00012328,2]
[37479,1714331499026,-500.0,0.00012328,2]
[37481,1714331499044,-500.0,0.00012328,2]
[37483,1714331499063,-500.0,0.00012328,2]
[37485,1714331499080,-500.0,0.00012328,2]
[37487,1714331499099,-500.0,0.00012328,2]
[37489,1714331499117,-500.0,0.00012328,2]
[37491,1714331499135,-996.75,0.00012328,2]
[37493,1714331499153,-595.66,0.00012328,2]
[37495,1714331499171,-500.0,0.00012328,2]
[37497,1714331499189,-500.0,0.00012328,2]
[37499,1714331499207,-781.66,0.00012328,2]
[37501,1714331499226,-604.53,0.00012328,2]
[37503,1714331499245,-500.0,0.00012328,2]
[37505,1714331499264,-768.34,0.00012328,2]
[37507,1714331499282,-500.0,0.00012328,2]
[37509,1714331499301,-500.0,0.00012328,2]
[37511,1714331499319,-500.0,0.00012328,2]
[37513,1714331499337,-1007.48,0.00012328,2]
[37515,1714331499362,-2921.48,0.00012328,2]
[37517,1714331499382,-986.84,0.00012328,2]
[37519,1714331499406,-500.0,0.00012328,2]
[37521,1714331499424,-500.0,0.00012328,2]
[37523,1714331499446,-500.0,0.00012328,2]
[37525,1714331499465,-500.0,0.00012328,2]
[37527,1714331499483,-1026.14,0.00012328,2]
[37529,1714331499501,-500.0,0.00012328,2]
[37531,1714331499519,-1489.77,0.00012328,2]
[37533,1714331499537,-438.81,0.00012328,2]
[37535,1714331499555,-500.0,0.00012328,2]
[37537,1714331499574,-772.53,0.00012328,2]
[37539,1714331499592,-2487.11,0.00012328,2]
[37541,1714331499610,-500.0,0.00012328,2]
[37543,1714331499628,-500.0,0.00012328,2]
[37545,1714331499646,-2683.52,0.00012328,2]
[37547,1714331499665,-500.0,0.00012328,2]
[37549,1714331499683,-513.23,0.00012328,2]
[37551,1714331499702,-500.0,0.00012328,2]
[37553,1714331499719,-1071.68,0.00012328,2]
[37555,1714331499737,-1126.91,0.00012328,2]
[37557,1714331499755,-500.0,0.00012328,2]
[37559,1714331499773,-768.45,0.00012328,2]
[37561,1714331499792,-500.0,0.00012328,2]
[37563,1714331499811,-729.6,0.00012328,2]
[37565,1714331499830,-1727.07,0.00012328,2]
[37567,1714331499848,-1439.12,0.00012328,2]
[37569,1714331499867,-500.0,0.00012328,2]
[37571,1714331499885,-500.0,0.00012328,2]
[37573,1714331499905,-500.0,0.00012328,2]
[37575,1714331499923,-3328.96,0.00012328,2]
[37577,1714331499942,-726.91,0.00012328,2]
[37579,1714331499961,-500.0,0.00012328,2]
[37581,1714331499979,-500.0,0.00012328,2]
[37582,1714331499989,-500.0,0.00012328,2]
[37583,1714331499998,-1829.87,0.00012328,2]
[37584,1714331500120,-555.89,0.00012328,2]
[37585,1714331500130,-502.88,0.00012328,2]
[37587,1714331500149,-1369.84,0.00012328,2]
[37589,1714331500169,-500.0,0.00012328,2]
[37591,1714331500188,-1950.72,0.00012328,2]
[37593,1714331500207,-2951.91,0.00012328,2]
[37595,1714331500226,-500.0,0.00012328,2]
[37597,1714331500244,-500.0,0.00012328,2]
[37599,1714331500264,-1806.02,0.00012328,2]
[37601,1714331500283,-500.0,0.00012328,2]
[37603,1714331500303,-1573.76,0.00012328,2]
[37605,1714331500321,-782.34,0.00012328,2]
[37607,1714331500340,-500.0,0.00012328,2]
[37609,1714331500362,-8529.27,0.00012328,2]
[37611,1714331500380,-500.0,0.00012328,2]
[37613,1714331500399,-500.0,0.00012328,2]
[37614,1714331500410,-500.0,0.00012328,2]
[37615,1714331500420,-500.0,0.00012328,2]
[37617,1714331500439,-500.0,0.00012328,2]
[37619,1714331500459,-5159.18,0.00012328,2]
[37620,1714331500468,-2107.3,0.00012328,2]
[37621,1714331500477,-500.0,0.00012328,2]
[37622,1714331500487,-500.0,0.00012328,2]
[37623,1714331500496,-500.0,0.00012328,2]
[37625,1714331500514,-500.0,0.00012328,2]
[37626,1714331500524,-1434.31,0.00012328,2]
[37627,1714331500533,-500.0,0.00012328,2]
[37628,1714331500543,-500.0,0.00012328,2]
[37629,1714331500553,-500.0,0.00012328,2]
[37631,1714331500572,-1145.96,0.00012328,2]
[37633,1714331500591,-674.92,0.00012328,2]
[37635,1714331500610,-4341.09,0.00012328,2]
[37637,1714331500629,-2859.93,0.00012328,2]
[37639,1714331500647,-500.0,0.00012328,2]
[37641,1714331500666,-500.0,0.00012328,2]
[37643,1714331500685,-500.0,0.00012328,2]
[37645,1714331500704,-982.93,0.00012328,2]
[37647,1714331500723,-1459.2,0.00012328,2]
[37649,1714331500742,-559.47,0.00012328,2]
[37651,1714331500761,-500.0,0.00012328,2]
[37653,1714331500779,-3164.21,0.00012328,2]
[37655,1714331500800,-500.0,0.00012328,2]
[37657,1714331500818,-870.22,0.00012328,2]
[37659,1714331500837,-2951.22,0.00012328,2]
[37660,1714331500846,-812.36,0.00012328,2]
[37661,1714331500855,-1754.95,0.00012328,2]
[37662,1714331500864,-586.66,0.00012328,2]
[37663,1714331500874,-856.74,0.00012328,2]
[37665,1714331500892,-500.0,0.00012328,2]
[37667,1714331500911,-500.0,0.00012328,2]
[37669,1714331500929,-506.42,0.00012328,2]
[37671,1714331500948,-1243.71,0.00012328,2]
[37673,1714331500967,-774.93,0.00012328,2]
[37675,1714331500986,-2615.87,0.00012328,2]
[37677,1714331501005,-956.53,0.00012328,2]
[37679,1714331501024,-500.0,0.00012328,2]
[37681,1714331501044,-694.2,0.00012328,2]
[37683,1714331501064,-1550.17,0.00012328,2]
[37685,1714331501083,-500.0,0.00012328,2]
[37687,1714331501103,-613.08,0.00012328,2]
[37689,1714331501122,-500.0,0.00012328,2]
[37690,1714331501131,-1316.95,0.00012328,2]
[37691,1714331501140,-1711.83,0.00012328,2]
[37692,1714331501150,-747.92,0.00012328,2]
[37693,1714331501159,-500.0,0.00012328,2]
[37694,1714331501168,-1211.25,0.00012328,2]
[37695,1714331501177,-500.0,0.00012328,2]
[37697,1714331501196,-1062.05,0.00012328,2]
[37699,1714331501215,-500.0,0.00012328,2]
[37701,1714331501234,-500.0,0.00012328,2]
[37703,1714331501253,-938.89,0.00012328,2]
[37705,1714331501272,-579.0,0.00012328,2]
[37706,1714331501282,-500.0,0.00012328,2]
[37707,1714331501291,-500.0,0.00012328,2]
[37708,1714331501302,-625.47538158,0.00012328,2]
[37709,1714331501312,-531.05,0.00012328,2]
[37710,1714331501322,-3800.95,0.00012328,2]
[37711,1714331501332,-500.0,0.00012328,2]
[37712,1714331501342,-509.12,0.00012328,2]
[37713,1714331501352,-1489.82,0.00012328,2]
[37714,1714331501366,-2169.37,0.00012328,2]
[37715,1714331501376,-500.0,0.00012328,2]
[37716,1714331501386,-2292.13,0.00012328,2]
[37717,1714331501395,-500.0,0.00012328,2]
[37719,1714331501415,-894.45,0.00012328,2]
[37721,1714331501434,-500.0,0.00012328,2]
[37723,1714331501454,-774.47,0.00012328,2]
[37725,1714331501472,-4212.02,0.00012328,2]
[37727,1714331501491,-973.0,0.00012328,2]
[37729,1714331501509,-500.0,0.00012328,2]
[37731,1714331501529,-500.0,0.00012328,2]
[37733,1714331501549,-672.42,0.00012328,2]
[37735,1714331501568,-5235.42,0.00012328,2]
[37737,1714331501587,-1242.59,0.00012328,2]
[37739,1714331501605,-500.0,0.00012328,2]
[37741,1714331501624,-500.0,0.00012328,2]
[37743,1714331501642,-860.55,0.00012328,2]
[37745,1714331501660,-500.0,0.00012328,2]
[37747,1714331501679,-500.0,0.00012328,2]
[37749,1714331501698,-500.0,0.00012328,2]
[37751,1714331501717,-500.0,0.00012328,2]
[37753,1714331501736,-500.0,0.00012328,2]
[37755,1714331501755,-977.7,0.00012328,2]
[37757,1714331501774,-1049.2,0.00012328,2]
[37759,1714331501791,-16083.09,0.00012328,2]
[37761,1714331501811,-723.16,0.00012328,2]
[37763,1714331501829,-761.59,0.00012328,2]
[37765,1714331501848,-500.0,0.00012328,2]
[37767,1714331501866,-500.0,0.00012328,2]
[37769,1714331501885,-500.0,0.00012328,2]
[37771,1714331501904,-951.73,0.00012328,2]
[37773,1714331501923,-500.0,0.00012328,2]
[37775,1714331501942,-1185.86,0.00012328,2]
[37777,1714331501962,-500.0,0.00012328,2]
[37779,1714331501981,-8626.56,0.00012328,2]
[37781,1714331501999,-500.0,0.00012328,2]
[37782,1714331502008,-500.0,0.00012328,2]
[37783,1714331502018,-2988.7,0.00012328,2]
[37784,1714331502027,-619.85,0.00012328,2]
[37785,1714331502037,-766.16,0.00012328,2]
[37787,1714331502055,-500.0,0.00012328,2]
[37788,1714331502064,-1206.57,0.00012328,2]
[37789,1714331502074,-1600.41,0.00012328,2]
[37790,1714331502084,-526.35,0.00012328,2]
[37791,1714331502093,-3105.73,0.00012328,2]
[37792,1714331502102,-1174.3,0.00012328,2]
[37793,1714331502111,-500.0,0.00012328,2]
[37794,1714331502121,-500.0,0.00012328,2]
[37795,1714331502131,-500.0,0.00012328,2]
[37796,1714331502140,-3774.23,0.00012328,2]
[37797,1714331502150,-500.0,0.00012328,2]
[37798,1714331502159,-1939.82,0.00012328,2]
[37799,1714331502168,-500.0,0.00012328,2]
[37800,1714331502178,-897.97,0.00012328,2]
[37801,1714331502189,-500.0,0.00012328,2]
[37802,1714331502200,-1975.3,0.00012328,2]
[37803,1714331502487,-566.88,0.00012328,2]
[37804,1714331502499,-500.0,0.00012328,2]
[37805,1714331502508,-2494.32,0.00012328,2]
[37806,1714331502518,-1962.38,0.00012328,2]
[37807,1714331502528,-500.0,0.00012328,2]
[37808,1714331502538,-3862.59,0.00012328,2]
[37809,1714331502548,-736.62,0.00012328,2]
[37811,1714331502567,-500.0,0.00012328,2]
[37813,1714331502587,-2923.81,0.00012328,2]
[37815,1714331502617,-500.0,0.00012328,2]
[37816,1714331502638,-678.26,0.00012328,2]
[37817,1714331502661,-1288.39,0.00012328,2]
[37818,1714331502685,-500.0,0.00012328,2]
[37819,1714331502706,-2897.29,0.00012328,2]
[37820,1714331502730,-500.0,0.00012328,2]
[37821,1714331502753,-500.0,0.00012328,2]
[37822,1714331502769,-1370.1,0.00012328,2]
[37823,1714331502779,-500.0,0.00012328,2]
[37824,1714331502788,-503.07289915,0.00012328,2]
[37825,1714331502799,-640.18,0.00012328,2]
[37826,1714331502808,-500.0,0.00012328,2]
[37827,1714331502818,-1204.37,0.00012328,2]
[37828,1714331502827,-20011.43,0.00012328,2]
[37829,1714331502837,-500.0,0.00012328,2]
[37830,1714331502846,-1538.14,0.00012328,2]
[37831,1714331502855,-500.0,0.00012328,2]
[37833,1714331502874,-500.0,0.00012328,2]
[37835,1714331502894,-5719.97,0.00012328,2]
[37837,1714331502912,-500.0,0.00012328,2]
[37838,1714331502921,-500.0,0.00012328,2]
[37839,1714331502931,-500.0,0.00012328,2]
[37840,1714331502940,-500.0,0.00012328,2]
[37841,1714331502949,-765.55,0.00012328,2]
[37842,1714331502958,-500.0,0.00012328,2]
[37843,1714331502968,-808.74,0.00012328,2]
[37844,1714331502978,-1086.25,0.00012328,2]
[37845,1714331502987,-500.0,0.00012328,2]
[37846,1714331502996,-500.0,0.00012328,2]
[37847,1714331503005,-500.0,0.00012328,2]
[37848,1714331503014,-500.0,0.00012328,2]
[37849,1714331503023,-500.0,0.00012328,2]
[37850,1714331503032,-567.93,0.00012328,2]
[37851,1714331503041,-500.0,0.00012328,2]
[37852,1714331503050,-673.0,0.00012329,2]
[37853,1714331503059,-5178.19690295,0.00012341,2]
[37854,1714331503068,-782.23667968,0.00012356,2]
[37855,1714331503077,-910.0,0.00012384,2]
[37856,1714331503087,-782.23667968,0.00012411,2]
[37857,1714331503096,-782.23667968,0.00012438,2]
[37858,1714331503105,-150.0,0.00012465,2]
[37859,1714331503114,-167.89698282,0.00012479,2]
[37860,1714331503123,-782.23667968,0.00012493,2]
[37861,1714331503133,-28761.59813632,0.00012502,2]
[37862,1714331503142,-782.23667968,0.00012548,2]
[37863,1714331503153,-510.25,0.00012602,2]
[37864,1714331503162,-625.22,0.00012602,2]
[37865,1714331503172,-531.17,0.00012602,2]
[37866,1714331503181,-500.0,0.00012602,2]
[37867,1714331503190,-500.0,0.00012602,2]
[37868,1714331503200,-605.3,0.00012602,2]
[37869,1714331503211,-500.0,0.00012602,2]
[37870,1714331503222,-500.0,0.00012602,2]
[37871,1714331503231,-500.0,0.00012602,2]
[37872,1714331503243,-607.32,0.00012602,2]
[37873,1714331503252,-500.0,0.00012602,2]
[37874,1714331503263,-500.0,0.00012602,2]
[37875,1714331503274,-500.0,0.00012602,2]
[37876,1714331503283,-500.0,0.00012602,2]
[37877,1714331503293,-529.75,0.00012602,2]
[37878,1714331503302,-500.0,0.00012602,2]
[37879,1714331503311,-500.0,0.00012602,2]
[37880,1714331503321,-500.0,0.00012602,2]
[37881,1714331503332,-589.33787672,0.00012602,2]
[37882,1714331503342,-500.0,0.00012602,2]
[37883,1714331503351,-263.47414867,0.00012602,2]
[37884,1714331503365,-597.62,0.00012602,2]
[37885,1714331503374,-744.02,0.00012602,2]
[37886,1714331503383,-500.0,0.00012602,2]
[37887,1714331503392,-500.0,0.00012602,2]
[37888,1714331503406,-500.0,0.00012602,2]
[37889,1714331503415,-556.86,0.00012602,2]
[37890,1714331503425,-500.0,0.00012602,2]
[37891,1714331503436,-500.0,0.00012602,2]
[37892,1714331503445,-634.38,0.00012602,2]
[37893,1714331503455,-500.0,0.00012602,2]
[37894,1714331503465,-500.0,0.00012602,2]
[37895,1714331503474,-503.88,0.00012602,2]
[37896,1714331503483,-610.03,0.00012602,2]
[37897,1714331503492,-708.28,0.00012602,2]
[37898,1714331503501,-500.0,0.00012602,2]
[37899,1714331503510,-500.0,0.00012602,2]
[37900,1714331503521,-588.27,0.00012602,2]
[37901,1714331503531,-500.0,0.00012602,2]
[37902,1714331503542,-500.0,0.00012602,2]
[37903,1714331503552,-500.0,0.00012602,2]
[37904,1714331503561,-500.0,0.00012602,2]
[37905,1714331503570,-500.0,0.00012602,2]
[37906,1714331503580,-500.0,0.00012602,2]
[37907,1714331503589,-500.0,0.00012602,2]
[37908,1714331503599,-523.86,0.00012602,2]
[37909,1714331503610,-500.0,0.00012602,2]
[37910,1714331503619,-500.0,0.00012602,2]
[37911,1714331503628,-584.81,0.00012602,2]
[37912,1714331503637,-546.92,0.00012602,2]
[37913,1714331503648,-500.0,0.00012602,2]
[37914,1714331503657,-500.0,0.00012602,2]
[37915,1714331503668,-638.09,0.00012602,2]
[37916,1714331503679,-500.0,0.00012602,2]
[37917,1714331503689,-500.0,0.00012602,2]
[37918,1714331503698,-500.0,0.00012602,2]
[37919,1714331503709,-327.22036816,0.00012602,2]
[37920,1714331503719,-500.0,0.00012602,2]
[37921,1714331503728,-500.0,0.00012602,2]
[37922,1714331503738,-500.0,0.00012602,2]
[37923,1714331503747,-649.78,0.00012602,2]
[37924,1714331503758,-500.0,0.00012602,2]
[37925,1714331503770,-500.0,0.00012602,2]
[37926,1714331503781,-500.0,0.00012602,2]
[37927,1714331503791,-500.0,0.00012602,2]
[37928,1714331503801,-500.0,0.00012602,2]
[37929,1714331503811,-550.86,0.00012602,2]
[37930,1714331503822,-500.0,0.00012602,2]
[37931,1714331503832,-500.0,0.00012602,2]
[37932,1714331503842,-500.0,0.00012602,2]
[37933,1714331503852,-681.2,0.00012602,2]
[37934,1714331503862,-652.17,0.00012602,2]
[37935,1714331503871,-500.0,0.00012602,2]
[37936,1714331503880,-666.44,0.00012602,2]
[37937,1714331503890,-712.36,0.00012602,2]
[37938,1714331503899,-500.0,0.00012602,2]
[37939,1714331503909,-500.0,0.00012602,2]
[37940,1714331503918,-566.45,0.00012602,2]
[37941,1714331503928,-500.0,0.00012602,2]
[37942,1714331503937,-500.0,0.00012602,2]
[37943,1714331503947,-500.0,0.00012602,2]
[37944,1714331503957,-514.37,0.00012602,2]
[37945,1714331503967,-500.0,0.00012602,2]
[37946,1714331503977,-500.0,0.00012602,2]
[37947,1714331503986,-583.37,0.00012602,2]
[37948,1714331503996,-500.0,0.00012602,2]
[37949,1714331504005,-500.0,0.00012602,2]
[37950,1714331504014,-770.94,0.00012602,2]
[37951,1714331504023,-500.0,0.00012602,2]